[Event "German Bundesliga 2021-22"]
[Site "Germany"]
[Date "2022.05.01"]
[Round "6.1"]
[White "Huschenbeth, Niclas"]
[Black "Nisipeanu, Liviu-Dieter"]
[Result "1/2-1/2"]
[ECO "B62"]
[WhiteElo "2611"]
[BlackElo "2652"]
[Annotator "TA"]
[PlyCount "51"]
[EventDate "2022.03.05"]
[EventType "team-tourn"]
[EventCountry "GER"]
[SourceTitle "playchess.com"]
[Source "ChessBase"]
[SourceQuality "1"]
[TimeControl "40/5400+30:1800+30"]

{[%evp 15,51,26,30,29,32,0,17,21,14,8,78,88,83,85,72,89,78,58,77,65,74,72,123,144,126,0,0,0,0,0,0,0,0,0,0,0,0,0]} 1. e4 {[%emt 0:00:00]} c5 {[%emt 0:00:00]} 2. Nf3 {[%emt 0:00:00]} e6 {[%emt 0:00:00]} 3. d4 {[%emt 0:00:00]} cxd4 {[%emt 0:00:00]} 4. Nxd4 {[%emt 0:00:00]} Nf6 {[%emt 0:00:00]} 5. Nc3 {[%emt 0:00:00]} Nc6 {[%emt 0:00:00]} 6. Qd3 {[%emt 0:00:00]} d6 {[%emt 0:08:45]} 7. Bg5 {[%emt 0:00:00]} Be7 {[%emt 0:05:22] 7...Bd7 is setting a new trend.} 8. O-O-O {[%emt 0:00:00]} O-O {[%emt 0:03:22]} 9. h4 {[%emt 0:18:57] B62: Sicilian: Richter-Rauzer: 6...e6: Unusual White 7th moves.} Bd7 {[%emt 0:23:33] [#]} 10. Be2 $146 {[%emt 0:07:39]} ({Predecessor:} 10. Ndb5 Ne5 11. Qg3 Nh5 12. Qh3 Bxg5+ 13. hxg5 Qxg5+ 14. Kb1 Bxb5 15. Bxb5 Nf6 16. Rdf1 Qh6 {0-1 (58) Sadhwani,R (2555)-Kotronias,V (2517) Banja Vrujci 2021}) 10... Rc8 {[%emt 0:06:25]} 11. Qg3 {[%emt 0:00:30]} Nxd4 {[%emt 0:00:30]} 12. Rxd4 $40 {[%emt 0:00:30][%mdl 128] White has some attack.} Qc7 {[%emt 0:00:30]} (12... Qa5 $1 $11) 13. h5 $16 {[%emt 0:00:30] White is more active.} d5 {[%emt 0:00:30] aiming for ...Nxe4.} 14. Bf4 {[%emt 0:48:22]} (14. exd5 Nxd5 15. Bxe7 (15. Rxd5 Qxg3 16. fxg3 exd5 $11) 15... Nxe7 $14) 14... Qb6 {[%emt 0:23:55]} 15. Be5 {[%emt 0:02:02]} Rxc3 {[%emt 0:02:39]} 16. Qxc3 {[%emt 0:04:58] Qg3 is the strong threat.} ({Inferior is} 16. bxc3 Ba3+ 17. Kd2 Qxd4+ $3 {[%mdl 512]} 18. cxd4 Nxe4+ 19. Ke3 Nxg3 20. Bxg3 Ba4 $17) 16... Nxe4 {[%emt 0:00:44] [#]} 17. Rxe4 {[%emt 0:00:59]} dxe4 {[%emt 0:00:08]} 18. Bxg7 {[%emt 0:06:06] Strongly threatening Qg3.} (18. Qg3 f6 19. Bf4 e5 $17) 18... Qxf2 {[%emt 0:08:52]} (18... Bg5+ $142 19. Kb1 Rc8) 19. Bxf8 {[%emt 0:00:24]} Bxf8 {[%emt 0:00:09] [#]} 20. h6 {[%emt 0:04:41]} Qxe2 $11 {[%emt 0:03:03] The position is equal.} 21. Qg3+ {[%emt 0:00:05]} Kh8 {[%emt 0:00:03] Hoping for ...f5.} 22. Qe5+ {[%emt 0:00:06]} Kg8 $1 {[%emt 0:00:59]} 23. Qg5+ {[%emt 0:00:26]} Kh8 {[%emt 0:00:03]} 24. Qf6+ {[%emt 0:00:04]} Kg8 {[%emt 0:00:05]} 25. Qg5+ {[%emt 0:00:12]} Kh8 {[%emt 0:00:05]} 26. Qf6+ {[%emt 0:05:41] Weighted Error Value: White=0.11 (very precise) /Black=0.12 (very precise)} 1/2-1/2

[Event "German Bundesliga 2021-22"]
[Site "Germany"]
[Date "2022.05.01"]
[Round "6.2"]
[White "Svane, Rasmus"]
[Black "Van Foreest, Jorden"]
[Result "1/2-1/2"]
[ECO "E16"]
[WhiteElo "2637"]
[BlackElo "2702"]
[Annotator "TA"]
[PlyCount "47"]
[EventDate "2022.03.05"]
[EventType "team-tourn"]
[EventCountry "GER"]
[SourceTitle "playchess.com"]
[Source "ChessBase"]
[SourceQuality "1"]
[TimeControl "40/5400+30:1800+30"]

{[%evp 22,47,0,0,0,0,0,0,0,0,0,0,0,0,0,0,0,0,0,0,0,0,0,0,0,0,0,0]} 1. d4 {[%emt 0:00:00]} Nf6 {[%emt 0:00:00]} 2. c4 {[%emt 0:00:00]} e6 {[%emt 0:00:00]} 3. Nf3 {[%emt 0:00:00]} b6 {[%emt 0:00:00]} 4. g3 {[%emt 0:00:00]} Bb7 {[%emt 0:00:00]} 5. Bg2 {[%emt 0:00:00]} Bb4+ {[%emt 0:00:00]} 6. Bd2 {[%emt 0:00:00]} Be7 {[%emt 0:00:00]} 7. Nc3 {[%emt 0:02:58]} c6 {[%emt 0:00:00]} 8. O-O {[%emt 0:11:01]} O-O {[%emt 0:00:00]} 9. e4 {[%emt 0:17:41]} d5 {[%emt 0:00:00]} 10. exd5 {[%emt 0:05:28]} cxd5 {[%emt 0:00:00]} 11. Ne5 {[%emt 0:00:20]} Nc6 {[%emt 0:00:00]} 12. Bg5 {[%emt 0:18:51] The position is equal.} Rc8 {[%emt 0:05:39] E16: Queen's Indian: 4 g3 Bb7 5 Bg2 Bb4+.} 13. Bxf6 {[%emt 0:05:25]} (13. Nxc6 {is interesting.} Bxc6 14. Bxf6 Bxf6 15. cxd5 exd5 16. Qd3) 13... Bxf6 {[%emt 0:00:07]} 14. cxd5 {[%emt 0:02:08]} Nxe5 {[%emt 0:00:21]} 15. dxe5 {[%emt 0:00:21]} Bxe5 {[%emt 0:00:07]} 16. dxe6 {[%emt 0:00:56]} Bxg2 {[%emt 0:02:00] This bishop pair is nice.} 17. exf7+ {[%emt 0:05:59]} Rxf7 {[%emt 0:00:08]} 18. Kxg2 {[%emt 0:00:19]} Qxd1 {[%emt 0:02:42]} 19. Rfxd1 {[%emt 0:04:22]} Bxc3 {[%emt 0:00:11]} 20. bxc3 {[%emt 0:02:32]} Rxc3 $11 {[%emt 0:00:37] KRR-KRR} 21. Rd8+ {[%emt 0:00:38]} Rf8 {[%emt 0:00:07]} 22. Rd2 {[%emt 0:00:08] [#]} Re8 $146 {[%emt 0:01:46]} ({Predecessor:} 22... Rc7 23. Re1 Rf5 24. Re4 Kf7 25. h4 h5 26. a4 Re7 27. Red4 g6 28. Rc2 Kg7 29. Rd6 Ref7 30. Rd4 Re7 31. Rd6 Ref7 {½-½ (31) Juhasz,K (2438)-Saric,A (2557) Austria 2019}) 23. Rd7 {[%emt 0:03:30]} Rc2 {[%emt 0:00:25]} 24. Rxa7 {[%emt 0:03:00] An interesting draw.  Weighted Error Value: White=0.00 (flawless) /Black=0.00 (flawless)} 1/2-1/2

[Event "German Bundesliga 2021-22"]
[Site "Germany"]
[Date "2022.05.01"]
[Round "6.2"]
[White "Bartel, Mateusz"]
[Black "Alonso Rosell, Alvar"]
[Result "1/2-1/2"]
[ECO "B12"]
[WhiteElo "2616"]
[BlackElo "2570"]
[Annotator "TA"]
[PlyCount "69"]
[EventDate "2022.03.05"]
[EventType "team-tourn"]
[EventCountry "GER"]
[SourceTitle "playchess.com"]
[Source "ChessBase"]
[SourceQuality "1"]
[TimeControl "40/5400+30:1800+30"]

{[%evp 9,69,14,14,11,12,9,12,0,18,7,16,10,0,0,7,8,12,9,22,-10,-2,-26,0,-22,0,0,0,0,0,0,29,52,32,39,32,33,34,36,54,38,36,33,29,30,29,20,17,6,6,0,0,0,0,0,0,0,0,0,8,0,0,0]} 1. e4 {[%emt 0:00:00][%cal Be2e4,Be4e5][%mdl 32]} c6 {[%emt 0:00:00]} 2. d4 {[%emt 0:00:00]} d5 {[%emt 0:00:00]} 3. e5 {[%emt 0:00:00]} c5 {[%emt 0:00:00]} 4. Nf3 {[%emt 0:00:00]} cxd4 {[%emt 0:00:00]} 5. Nxd4 {[%emt 0:00:19]} Nc6 {[%emt 0:00:00]} 6. Nxc6 {[%emt 0:00:03] B12: Caro-Kann: Advance Variation.} bxc6 {[%emt 0:00:00]} 7. Bd3 {[%emt 0:00:05]} e6 {[%emt 0:00:00]} 8. Nd2 {[%emt 0:00:53]} Ne7 {[%emt 0:03:23]} 9. Nf3 {[%emt 0:03:36]} Ba6 {[%emt 0:40:17]} 10. O-O {[%emt 0:00:53]} Bxd3 {[%emt 0:00:19] [#]} 11. Qxd3 $146 {[%emt 0:00:04]} ({Predecessor:} 11. cxd3 Nf5 12. Bg5 Qd7 13. d4 h6 14. Bd2 Rb8 15. g4 Ne7 16. b4 Nc8 17. Qc2 Nb6 18. Rab1 Be7 19. Rb3 Nc4 20. Kg2 {½-½ (20) Szyszylo,R (2258)-Stenner,P (2242) Germany 2019}) 11... Qd7 {[%emt 0:13:15]} 12. Bd2 {[%emt 0:04:46]} c5 {[%emt 0:04:55][%cal Bc6c5,Bc5b4][%mdl 32]} 13. c4 {[%emt 0:00:55]} Nc6 {[%emt 0:18:46]} 14. Rfe1 {[%emt 0:02:28]} Be7 {[%emt 0:01:59]} 15. Rac1 {[%emt 0:00:06]} h6 {[%emt 0:04:15]} 16. a3 {[%emt 0:08:12][%cal Ob2b4]} O-O {[%emt 0:04:08]} 17. b4 {[%emt 0:20:34]} cxb4 {[%emt 0:04:55]} 18. cxd5 {[%emt 0:00:13]} exd5 {[%emt 0:00:07]} 19. Qb5 {[%emt 0:00:17][%csl LRb4,LRc6]} Nb8 {[%emt 0:02:49][%cal Bc6b8,Bb8d7,Bd7b6,Bb6c4][%mdl 32]} 20. Qxd7 {[%emt 0:00:56]} Nxd7 {[%emt 0:00:02]} 21. Rc7 {[%emt 0:00:10]} Rfd8 {[%emt 0:00:31]} 22. axb4 {[%emt 0:00:07]} Bf8 {[%emt 0:01:12]} 23. Ra1 {[%emt 0:06:37]} Nb6 {[%emt 0:00:07]} 24. Kf1 {[%emt 0:07:36]} Nc4 {[%emt 0:00:40]} 25. Bc3 {[%emt 0:00:09]} a6 {[%emt 0:00:18]} 26. Ke2 {[%emt 0:01:50]} Rdb8 {[%emt 0:00:56]} 27. Ra4 {[%emt 0:00:13]} Rb6 {[%emt 0:00:26] Prevents Rc6. The position is equal.} 28. Kd3 {[%emt 0:06:40]} Rab8 {[%emt 0:00:11]} 29. Rd7 {[%emt 0:01:28]} Rg6 {[%emt 0:00:54] [#] Hoping for ...Nb6.} 30. Bd4 {[%emt 0:03:04]} ({Not} 30. Rxd5 $2 Nb6 31. Rda5 Nxa4 32. Rxa4 Rxg2 $19) 30... Nb6 {[%emt 0:00:28]} 31. Bxb6 {[%emt 0:00:06]} Rgxb6 {[%emt 0:00:09]} 32. Rxd5 {[%emt 0:01:01]} Bxb4 {[%emt 0:00:18]} 33. Nd4 {[%emt 0:00:07]} Be1 {[%emt 0:00:53]} 34. f4 {[%emt 0:01:15]} Rb2 {[%emt 0:00:29]} 35. Ra1 {[%emt 0:08:58] Weighted Error Value: White=0.04 (flawless) /Black=0.06 (flawless)} 1/2-1/2

[Event "German Bundesliga 2021-22"]
[Site "Germany"]
[Date "2022.05.01"]
[Round "6.2"]
[White "Nguyen, Thai Dai Van"]
[Black "Banusz, Tamas"]
[Result "1/2-1/2"]
[ECO "C42"]
[WhiteElo "2613"]
[BlackElo "2598"]
[Annotator "TA"]
[PlyCount "57"]
[EventDate "2022.03.05"]
[EventType "team-tourn"]
[EventCountry "GER"]
[SourceTitle "playchess.com"]
[Source "ChessBase"]
[SourceQuality "1"]
[TimeControl "40/5400+30:1800+30"]

{[%evp 10,57,29,26,50,40,41,20,20,22,20,16,18,26,26,21,22,10,14,16,26,25,23,0,0,0,0,0,0,0,0,0,19,16,16,0,0,0,0,0,0,0,0,0,0,0,0,-14,0,0]} 1. e4 {[%emt 0:00:00]} e5 {[%emt 0:00:00]} 2. Nf3 {[%emt 0:00:00]} Nf6 {[%emt 0:00:00]} 3. Nxe5 {[%emt 0:00:00]} d6 {[%emt 0:00:00]} 4. Nf3 {[%emt 0:00:00]} Nxe4 {[%emt 0:00:00]} 5. d4 {[%emt 0:00:00]} d5 {[%emt 0:00:00]} 6. Bd3 {[%emt 0:00:00]} Bf5 {[%emt 0:00:00] 6...Bd6 is becoming the main line. C42: Petroff Defence: 3 Nxe5 and unusual White 3rd moves.} 7. O-O {[%emt 0:00:00]} Be7 {[%emt 0:00:00]} 8. Ne5 {[%emt 0:11:45]} Nd7 {[%emt 0:00:00]} 9. Nc3 {[%emt 0:00:54]} Nxc3 {[%emt 0:00:00]} 10. bxc3 {[%emt 0:00:11]} Bxd3 {[%emt 0:00:21]} 11. cxd3 {[%emt 0:01:04]} O-O {[%emt 0:00:30]} 12. Rb1 {[%emt 0:06:42]} Rb8 {[%emt 0:08:07] [#]} 13. Qa4 $146 {[%emt 0:09:09]} ({Predecessor:} 13. f4 f6 14. Ng4 f5 15. Ne5 Nxe5 16. fxe5 Qd7 17. Rb2 b5 18. Be3 a5 19. Rbf2 {½-½ (33) Ponomariov,R (2682)-Gelfand,B (2719) Hengshui 2019}) 13... Nxe5 {[%emt 0:03:20]} 14. dxe5 {[%emt 0:00:12]} Qe8 {[%emt 0:04:48]} 15. Qxa7 {[%emt 0:16:32]} Qc6 {[%emt 0:00:20]} 16. Qa5 {[%emt 0:13:35]} b6 {[%emt 0:08:08] The position is equal.} 17. Qb5 {[%emt 0:00:06]} Qxc3 {[%emt 0:01:27]} 18. Bb2 {[%emt 0:00:45]} Qc5 {[%emt 0:04:43]} 19. Qb3 {[%emt 0:03:59]} Qc6 {[%emt 0:05:16]} 20. f4 {[%emt 0:02:59]} f5 {[%emt 0:05:41]} 21. Rfc1 {[%emt 0:01:09]} Qd7 {[%emt 0:05:09]} 22. Qc3 {[%emt 0:07:47]} c5 {[%emt 0:05:13]} 23. e6 {[%emt 0:00:20][%csl Gb2][%cal Rc3g7] [#]} d4 {[%emt 0:00:07]} 24. exd7 {[%emt 0:00:33]} dxc3 {[%emt 0:00:07]} 25. Bxc3 {[%emt 0:00:06]} Rfd8 {[%emt 0:04:40]} 26. Be5 {[%emt 0:03:01]} Rb7 {[%emt 0:03:30]} 27. a4 {[%emt 0:01:03][%cal Oa4a5]} Rdxd7 {[%emt 0:04:33]} 28. Rb3 {[%emt 0:00:27]} Kf7 29. Kf1 {[%emt 0:03:02] Weighted Error Value: White=0.05 (flawless) /Black=0.03 (flawless)} 1/2-1/2

[Event "German Bundesliga 2021-22"]
[Site "Germany"]
[Date "2022.05.01"]
[Round "6.3"]
[White "Ragger, Markus"]
[Black "Hansen, Sune Berg"]
[Result "1-0"]
[ECO "B12"]
[WhiteElo "2656"]
[BlackElo "2527"]
[Annotator "TA"]
[PlyCount "65"]
[EventDate "2022.03.05"]
[EventType "team-tourn"]
[EventCountry "GER"]
[SourceTitle "playchess.com"]
[Source "ChessBase"]
[SourceQuality "1"]
[TimeControl "40/5400+30:1800+30"]

{[%evp 9,65,21,27,25,18,23,21,8,0,0,37,36,45,40,35,29,28,24,41,25,71,70,127,150,128,128,237,111,120,134,112,109,158,152,181,153,160,160,236,232,208,170,185,159,215,218,216,138,141,120,247,247,263,251,477,308,603,568]} 1. e4 {[%emt 0:00:00]} c6 {[%emt 0:00:00]} 2. d4 {[%emt 0:00:00]} d5 {[%emt 0:00:00]} 3. e5 {[%emt 0:00:00]} c5 {[%emt 0:00:00]} 4. dxc5 {[%emt 0:00:00]} e6 {[%emt 0:00:00]} 5. Nf3 {[%emt 0:00:00]} Bxc5 {[%emt 0:00:00]} 6. a3 {[%emt 0:00:00] B12: Caro-Kann: Advance Variation.} Ne7 {[%emt 0:07:21][%cal Bg8e7,Be7g6,Bg6f4,Bf4d3][%mdl 32]} 7. b4 {[%emt 0:00:00]} Bb6 {[%emt 0:00:12]} 8. Nbd2 $5 {[%emt 0:00:32][%mdl 4] The position is equal. An interesting side line.} Ng6 {[%emt 0:10:22]} 9. Bb2 {[%emt 0:03:25]} a5 {[%emt 0:16:03] [#]} 10. h4 $146 {[%emt 0:04:15]} ({Predecessor:} 10. b5 Nd7 11. c4 O-O 12. Be2 Bc7 13. O-O Ndxe5 14. Qb3 Nf4 15. Nxe5 Nxe2+ 16. Kh1 {½-½ (64) Magold,F (1859)-Macias Pino,D (2126) Bratislava 2019}) 10... h5 {[%emt 0:07:25]} 11. b5 {[%emt 0:17:09]} ({But not} 11. Bb5+ Nc6 $11) 11... Nd7 {[%emt 0:01:50]} 12. Bd3 {[%emt 0:00:11]} Nf4 {[%emt 0:02:25]} 13. g3 {[%emt 0:06:20]} Nxd3+ {[%emt 0:01:01]} 14. cxd3 {[%emt 0:00:01]} Nc5 {[%emt 0:07:27]} (14... a4 $1 $11) 15. Qc2 $1 $16 {[%emt 0:06:59]} Bd7 {[%emt 0:01:30]} (15... a4 $1 $14) 16. a4 $1 {[%emt 0:00:38]} Rc8 {[%emt 0:09:26][%cal Oc5e4] [#]} 17. Qb1 $1 {[%emt 0:01:00]} Rh6 {[%emt 0:06:55]} (17... O-O $16) 18. d4 {[%emt 0:18:44]} (18. O-O $18 {has better winning chances.}) 18... Nxa4 {[%emt 0:04:07]} 19. Rxa4 {[%emt 0:01:03] Black must now prevent Ba3.} Bxb5 {[%emt 0:00:05]} 20. Ra3 {[%emt 0:00:06]} Qd7 {[%emt 0:08:15]} (20... Ba6 $142 21. Bc3 Qe7) 21. Bc3 {[%emt 0:11:13][%cal Bb2c3,Bc3b4,Bb4c5][%mdl 32]} a4 {[%emt 0:02:18]} 22. Kd1 {[%emt 0:00:50]} Bd8 {[%emt 0:03:52]} 23. Re1 {[%emt 0:03:33][%cal Bh1e1,Be1e3,Be3f3][%mdl 32]} Bc4 {[%emt 0:04:03]} (23... Kf8 $16 24. Bb4+ Kg8) 24. Bb4 {[%emt 0:10:01]} Qb5 {[%emt 0:03:47]} 25. Bc5 {[%emt 0:03:46]} Qxb1+ {[%emt 0:01:52]} 26. Nxb1 {[%emt 0:00:01]} Ba5 {[%emt 0:00:24]} (26... b6 $16) 27. Ree3 $18 {[%emt 0:01:24]} b5 {[%emt 0:01:29]} 28. Ne1 {[%emt 0:01:06]} Kd7 {[%emt 0:01:00][%cal Oc8c5]} 29. Nc2 {[%emt 0:00:35]} Rhh8 {[%emt 0:00:04] [#] Loses the game.} (29... Rg8 $16) 30. Rf3 $1 {[%emt 0:01:29]} Ke8 {[%emt 0:00:22]} 31. Nd2 {[%emt 0:00:44]} Rc6 $2 {[%emt 0:00:30]} (31... Bd8 32. Ne3 Be7) 32. Ra1 {[%emt 0:00:42]} Rh6 $2 {[%emt 0:00:22]} (32... Bxd2 33. Kxd2 Rc7) 33. Nxc4 {[%emt 0:00:38] Weighted Error Value: White=0.17 (very precise) /Black=0.45} 1-0

[Event "German Bundesliga 2021-22"]
[Site "Germany"]
[Date "2022.05.01"]
[Round "6.3"]
[White "Orlov, Andrey"]
[Black "Fridman, Daniel"]
[Result "1/2-1/2"]
[ECO "C43"]
[WhiteElo "2490"]
[BlackElo "2626"]
[Annotator "TA"]
[PlyCount "40"]
[EventDate "2022.03.05"]
[EventType "team-tourn"]
[EventCountry "GER"]
[SourceTitle "playchess.com"]
[Source "ChessBase"]
[SourceQuality "1"]
[TimeControl "40/5400+30:1800+30"]

{[%evp 9,40,0,0,0,0,0,0,0,0,0,0,0,0,0,0,0,0,0,0,0,0,0,0,0,0,0,0,0,0,0,0,0,0]} 1. e4 {[%emt 0:00:00]} e5 {[%emt 0:00:00]} 2. Nf3 {[%emt 0:00:00]} Nf6 {[%emt 0:00:00][%cal Bg8f6,Bf6e4,Be4f2,Bf2h1][%mdl 32]} 3. d4 {[%emt 0:00:00]} Nxe4 {[%emt 0:00:00]} 4. dxe5 {[%emt 0:00:00]} Bc5 {[%emt 0:01:58]} 5. Bc4 {[%emt 0:00:00]} Nxf2 {[%emt 0:00:37] The position is equal.} ({Don't do} 5... Bxf2+ 6. Kf1 d5 7. Qxd5 Qxd5 8. Bxd5 $16) 6. Bxf7+ $1 {[%emt 0:00:00][%mdl 64] [#] Decoy. C43: Petroff Defence: 3 d4.} Kxf7 {[%emt 0:00:06]} 7. Qd5+ {[%emt 0:00:00]} Kg6 {[%emt 0:00:07]} 8. Qxc5 {[%emt 0:00:00]} Nxh1 {[%emt 0:00:06]} 9. Nc3 {[%emt 0:00:00] aiming for Nd5.} h6 {[%emt 0:03:42]} ({Much less strong is} 9... d5 10. Nxd5 h6 11. Qc4 $16) 10. Qc4 {[%emt 0:00:28]} Kh7 {[%emt 0:01:30] Hoping for ...Re8.} 11. Nd5 {[%emt 0:04:26][%cal Od5f6]} Re8 $1 {[%emt 0:02:30] [#] Strongly threatening ...c6.} 12. Qe4+ {[%emt 0:02:12]} Kh8 {[%emt 0:01:17] ...d6 is the strong threat.} 13. Bxh6 {[%emt 0:00:45]} gxh6 {[%emt 0:01:00]} 14. Qf4 $1 {[%emt 0:00:18]} Re6 {[%emt 0:01:31] White must now prevent ...d6.} 15. Nxc7 $1 {[%emt 0:01:34] [#]} Qxc7 $146 {[%emt 0:06:25]} ({Predecessor:} 15... Rg6 16. Nxa8 d5 17. O-O-O Bg4 18. e6 Bxf3 19. gxf3 Nc6 20. Nc7 Nf2 21. Rxd5 Qe7 {½-½ (28) Fenwick,J (2437)-Remis Fernandez,J (2412) ICCF email 2013}) 16. Qf8+ {[%emt 0:00:17]} Kh7 {[%emt 0:00:07]} 17. Qf7+ {[%emt 0:00:03]} Kh8 {[%emt 0:00:09]} 18. Qf8+ {[%emt 0:00:05]} Kh7 {[%emt 0:00:11]} 19. Qf7+ {[%emt 0:00:04]} Kh8 {[%emt 0:00:06]} 20. Qf8+ {[%emt 0:00:08]} Kh7 {An interesting draw.  Weighted Error Value: White=0.00 (flawless) /Black=0.00 (flawless)} 1/2-1/2

[Event "German Bundesliga 2021-22"]
[Site "Germany"]
[Date "2022.05.01"]
[Round "6.3"]
[White "Johansson, Linus"]
[Black "Vogel, Roven"]
[Result "1-0"]
[ECO "D35"]
[WhiteElo "2473"]
[BlackElo "2452"]
[Annotator "TA"]
[PlyCount "113"]
[EventDate "2022.03.05"]
[EventType "team-tourn"]
[EventCountry "GER"]
[SourceTitle "playchess.com"]
[Source "ChessBase"]
[SourceQuality "1"]
[TimeControl "40/5400+30:1800+30"]

{[%evp 14,113,17,12,21,9,25,25,23,18,29,27,36,27,34,25,27,20,24,13,13,0,0,0,0,0,0,0,0,0,31,0,0,0,49,54,166,145,126,144,353,182,172,165,172,148,173,177,165,188,178,175,220,166,182,170,200,213,213,218,227,190,596,607,531,502,651,112,578,581,598,618,675,655,767,672,656,664,636,574,574,574,566,548,556,534,482,456,29972,29974,29974,29975,29974,29975,29966,29967,29981,29982,29982,29983,29983,29981]} 1. d4 {[%emt 0:00:00]} Nf6 {[%emt 0:00:00]} 2. c4 {[%emt 0:00:00]} e6 {[%emt 0:00:00]} 3. Nc3 {[%emt 0:00:00]} d5 {[%emt 0:00:00]} 4. cxd5 {[%emt 0:00:00]} exd5 {[%emt 0:00:00]} 5. Bg5 {[%emt 0:00:00]} Be7 {[%emt 0:00:00]} 6. e3 {[%emt 0:00:00]} O-O {[%emt 0:00:00]} 7. Bd3 {[%emt 0:00:00]} h6 {[%emt 0:00:00]} 8. Bf4 {[%emt 0:00:00]} Re8 {[%emt 0:04:22] 8...c5 is the modern continuation. D35: Queen's Gambit Declined: Exchange Variation.} 9. h3 {[%emt 0:00:00]} Bd6 {[%emt 0:10:38] Hoping for ...Bxf4.} 10. Nge2 {[%emt 0:00:00]} c6 {[%emt 0:00:20] White has an edge.} 11. Qc2 {[%emt 0:00:00]} a5 {[%emt 0:01:55]} 12. O-O {[%emt 0:00:00][%cal Be1g1,Bg1f1,Bf1g2,Bg2h2][%mdl 32] [#]} Nh5 $146 {[%emt 0:02:02]} ({Predecessor:} 12... b5 13. Rac1 Bb7 14. e4 Bxf4 15. Nxf4 dxe4 16. Nxe4 Nxe4 17. Bxe4 Qxd4 18. Bh7+ Kf8 {½-½ (36) Thistlewood,A (1617)-Pointon,M ICCF email 2017}) 13. Bxd6 {[%emt 0:03:52]} Qxd6 {[%emt 0:00:17]} 14. Na4 {[%emt 0:00:03]} Nd7 {[%emt 0:03:58]} 15. Rfc1 {[%emt 0:01:58]} Qe7 {[%emt 0:01:19]} 16. Kf1 {[%emt 0:06:46]} Qd6 {[%emt 0:08:03]} 17. g4 {[%emt 0:06:36]} Nhf6 {[%emt 0:13:15]} 18. Kg2 {[%emt 0:04:51]} h5 {[%emt 0:06:27]} 19. g5 $36 {[%emt 0:03:47][%mdl 2048] Black is under pressure.} Ne4 {[%emt 0:00:07]} 20. Bxe4 {[%emt 0:00:33]} dxe4 {[%emt 0:01:22]} 21. Nf4 {[%emt 0:01:47]} Qe7 {[%emt 0:04:17]} 22. Kh2 {[%emt 0:03:25]} Qxg5 {[%emt 0:06:29]} 23. Rg1 {[%emt 0:00:08]} Qh4 {[%emt 0:09:12]} (23... Qe7 $11 {is more appropriate.}) 24. Rg3 $1 $14 {[%emt 0:01:29]} Nf8 {[%emt 0:00:11]} (24... g6 $14) 25. Nb6 {[%emt 0:07:24]} Rb8 {[%emt 0:01:21][%cal Of8g6]} 26. Rag1 $1 {[%emt 0:06:19]} Ng6 $2 {[%emt 0:06:48]} (26... g6 $16) 27. Nxg6 {[%emt 0:10:52] Active counter play!} (27. Qb3 $142 Be6 28. Nxe6 Rxe6 29. Rxg6 Rxg6 30. Rxg6) 27... fxg6 $18 {[%emt 0:00:06]} 28. Nxc8 {[%emt 0:00:04] Dancing on a razor blade.} Rbxc8 {[%emt 0:02:15]} 29. Qb3+ {[%emt 0:00:36]} Kh8 {[%emt 0:00:21]} 30. Qxb7 {[%emt 0:01:38]} Qe7 {[%emt 0:05:54]} 31. Qxe7 {[%emt 0:00:46]} Rxe7 {[%emt 0:00:02]} 32. Rxg6 {[%emt 0:00:11][%mdl 4096] Endgame KRR-KRR} c5 {[%emt 0:01:33]} 33. d5 {[%emt 0:10:38]} Rf8 {[%emt 0:03:13]} 34. R1g2 {[%emt 0:01:49]} a4 {[%emt 0:05:33]} 35. Ra6 {[%emt 0:01:50]} Rb7 {[%emt 0:00:43]} 36. Rxa4 {[%emt 0:00:11]} Rxb2 {[%emt 0:00:06]} 37. Rxe4 {[%emt 0:00:06] And now f4 would win.} Rfxf2 {[%emt 0:00:04]} (37... Rd2 38. f4 Rxd5) 38. Rxf2 {[%emt 0:00:10]} Rxf2+ {[%emt 0:00:05] KR-KR} 39. Kg3 {[%emt 0:00:05]} Rd2 {[%emt 0:05:53]} 40. Re8+ {[%emt 0:02:45]} Kh7 {[%emt 0:00:06]} 41. e4 {[%emt 0:30:03]} g5 {[%emt 0:30:37]} 42. a4 {[%emt 0:05:45]} Rd3+ {[%emt 0:00:59]} 43. Kg2 {[%emt 0:00:59]} c4 {[%emt 0:00:54]} 44. Rc8 {[%emt 0:00:57]} Kg7 {[%emt 0:00:00]} 45. a5 {[%emt 0:00:00] Black must now prevent a6.} Kf6 {[%emt 0:00:00]} 46. Rxc4 {[%emt 0:00:00]} Ra3 {[%emt 0:00:00]} 47. Rc8 {[%emt 0:00:00]} Rxa5 {[%emt 0:00:00] [#]} 48. Re8 $1 {[%emt 0:00:00]} Ra2+ {[%emt 0:00:00]} 49. Kf3 {[%emt 0:00:00]} Ra3+ {[%emt 0:00:00] [#]} 50. Ke2 $1 {[%emt 0:00:00]} Rxh3 {[%emt 0:00:00]} (50... Kf7 $18 51. Re5 Rxh3 52. Rxg5 h4) 51. d6 {[%emt 0:00:00] White mates.} Rh2+ {[%emt 0:00:00]} 52. Kd3 {[%emt 0:00:00]} Rh1 {[%emt 0:00:00]} 53. Kc2 {[%emt 0:00:00]} Rh2+ {[%emt 0:00:00]} 54. Kc3 {[%emt 0:00:00]} Rh1 {[%emt 0:00:00]} 55. d7 {[%emt 0:00:00]} Rd1 {[%emt 0:00:00]} 56. d8=Q+ {[%emt 0:00:00]} Rxd8 {[%emt 0:00:00]} 57. Rxd8 {[%emt 0:00:00] Weighted Error Value: White=0.10 (very precise) /Black=0.47} 1-0